fUSD/lending_fUSD_20240614
["ID","MTS","AMOUNT","RATE_DAILY","PERIOD"]
[329412660,1718326312500,-500.0,0.00024931,3]
[329412661,1718326312512,-500.0,0.00024931,3]
[329412662,1718326312523,-216.14975564,0.00024931,3]
[329412663,1718326312556,-641.17,0.00024931,3]
[329412664,1718326312574,-416.93310137,0.00024931,3]
[329412665,1718326312603,-500.0,0.00024931,3]
[329412666,1718326312617,-500.0,0.00024931,3]
[329412667,1718326312632,-500.0,0.00024931,3]
[329412668,1718326312650,-500.0,0.00024931,3]
[329412669,1718326312668,-500.0,0.00024931,3]
[329412670,1718326312679,-570.32,0.00024931,3]
[329412671,1718326312696,-500.0,0.00024931,3]
[329412672,1718326312714,-500.0,0.00024931,3]
[329412673,1718326312729,-500.0,0.00024931,3]
[329412674,1718326312744,-500.0,0.00024931,3]
[329412675,1718326312756,-500.0,0.00024931,3]
[329412676,1718326312772,-500.0,0.00024931,3]
[329412677,1718326312805,-500.0,0.00024931,3]
[329412678,1718326312832,-756.62,0.00024931,3]
[329412679,1718326312862,-500.0,0.00024931,3]
[329412680,1718326312894,-500.0,0.00024931,3]
[329412681,1718326312917,-500.0,0.00024931,3]
[329412682,1718326312937,-500.0,0.00024931,3]
[329412683,1718326312966,-500.0,0.00024931,3]
[329412684,1718326312993,-500.0,0.00024931,3]
[329412685,1718326313022,-500.0,0.00024931,3]
[329412686,1718326313036,-595.23,0.00024931,3]
[329412687,1718326313060,-500.0,0.00024931,3]
[329412688,1718326313077,-188.01,0.00024931,3]
[329412689,1718326313094,-541.44,0.00024931,3]
[329412690,1718326313124,-500.0,0.00024931,3]
[329412691,1718326313135,-500.0,0.00024931,3]
[329412692,1718326313152,-294.66937219,0.00024931,3]
[329412693,1718326313167,-500.0,0.00024931,3]
[329412694,1718326313179,-500.0,0.00024931,3]
[329412695,1718326313196,-500.0,0.00024931,3]
[329412696,1718326313207,-500.0,0.00024931,3]
[329412697,1718326313220,-500.0,0.00024931,3]
[329412698,1718326313245,-500.0,0.00024931,3]
[329412699,1718326313260,-531.1,0.00024931,3]
[329412700,1718326313276,-500.0,0.00024931,3]
[329412701,1718326313308,-500.0,0.00024931,3]
[329412702,1718326313326,-500.0,0.00024931,3]
[329412703,1718326313356,-500.0,0.00024931,3]
[329412704,1718326313386,-307.363228,0.00024931,7]
[329412705,1718326313413,-500.0,0.00024931,3]
[329412706,1718326313425,-307.363228,0.00024931,7]
[329412707,1718326313440,-341.652658,0.00024931,7]
[329412708,1718326313453,-341.652658,0.00024931,7]
[329412709,1718326313472,-307.363228,0.00024931,7]
[329412710,1718326313491,-307.363234,0.00024931,7]
[329412711,1718326313505,-341.652658,0.00024931,7]
[329412712,1718326313518,-500.0,0.00024931,3]
[329412713,1718326313531,-500.0,0.00024931,3]
[329412714,1718326313544,-341.652658,0.00024931,7]
[329412715,1718326313556,-500.0,0.00024931,3]
[329412716,1718326313577,-871.93,0.00024931,3]
[329412717,1718326313593,-500.0,0.00024931,3]
[329412718,1718326313605,-500.0,0.00024931,3]
[329412719,1718326313617,-811.04,0.00024931,3]
[329412720,1718326313628,-282.13957016,0.00024931,3]
[329412721,1718326313669,-500.0,0.00024931,3]
[329412722,1718326313682,-1456.15,0.00024931,3]
[329412723,1718326313701,-500.0,0.00024931,3]
[329412724,1718326313712,-348.49,0.00024931,3]
[329412725,1718326313725,-500.0,0.00024931,3]
[329412726,1718326313758,-747.44,0.00024931,3]
[329412727,1718326313791,-218.82826,0.00024931,7]
[329412728,1718326313803,-897.13,0.00024931,3]
[329412729,1718326313818,-218.828257,0.00024931,7]
[329412730,1718326313840,-500.0,0.00024931,3]
[329412731,1718326313861,-500.0,0.00024931,3]
[329412732,1718326313918,-500.0,0.00024931,3]
[329412733,1718326313930,-151.0,0.00024931,7]
[329412734,1718326313948,-500.0,0.00024931,3]
[329412735,1718326313959,-500.0,0.00024931,3]
[329412736,1718326313973,-2475.47,0.00024931,3]
[329412737,1718326313990,-500.0,0.00024931,3]
[329412738,1718326314015,-500.0,0.00024931,3]
[329412739,1718326314031,-151.0,0.00024931,7]
[329412740,1718326314053,-500.0,0.00024931,3]
[329412741,1718326314080,-685.651544,0.00024931,7]
[329412742,1718326314093,-500.0,0.00024931,3]
[329412743,1718326314104,-500.0,0.00024931,3]
[329412744,1718326314128,-685.651541,0.00024931,7]
[329412745,1718326314148,-500.0,0.00024931,3]
[329412746,1718326314171,-746.58,0.00024931,3]
[329412747,1718326314195,-186.43416993,0.00024931,3]
[329412748,1718326314207,-500.0,0.00024931,3]
[329412749,1718326314219,-500.0,0.00024931,3]
[329412750,1718326314237,-437.12,0.00024931,3]
[329412751,1718326314250,-2738.14,0.00024931,3]
[329412752,1718326314272,-500.0,0.00024931,3]
[329412753,1718326314285,-500.0,0.00024931,3]
[329412754,1718326314299,-4588.61,0.00024931,3]
[329412755,1718326314332,-500.0,0.00024931,3]
[329412756,1718326314360,-500.0,0.00024931,3]
[329412757,1718326314376,-500.0,0.00024931,3]
[329412758,1718326314393,-500.0,0.00024931,3]
[329412759,1718326314405,-500.0,0.00024931,3]
[329412760,1718326314416,-745.58,0.00024931,3]
[329412761,1718326314431,-500.0,0.00024931,3]
[329412762,1718326314445,-151.0,0.00024931,7]
[329412763,1718326314460,-1721.54,0.00024931,3]
[329412764,1718326314488,-3059.36,0.00024931,3]
[329412765,1718326314536,-500.0,0.00024931,3]
[329412766,1718326314588,-151.0,0.00024931,7]
[329412767,1718326314602,-500.0,0.00024931,3]
[329412768,1718326314622,-500.0,0.00024931,3]
[329412769,1718326314641,-500.0,0.00024931,3]
[329412770,1718326314664,-500.0,0.00024931,3]
[329412771,1718326314684,-500.0,0.00024931,3]
[329412772,1718326314695,-500.0,0.00024931,3]
[329412773,1718326314732,-1034.72,0.00024931,3]
[329412774,1718326314835,-500.0,0.00024931,3]
[329412775,1718326314871,-3109.59,0.00024931,3]
[329412776,1718326314887,-960.45,0.00024931,3]
[329412777,1718326314921,-500.0,0.00024931,3]
[329412778,1718326314958,-151.0,0.00024931,7]
[329412779,1718326314972,-4009.44,0.00024931,3]
[329412780,1718326314998,-500.0,0.00024931,3]
[329412781,1718326315034,-500.0,0.00024931,3]
[329412782,1718326315068,-500.0,0.00024931,3]
[329412783,1718326315096,-1373.05,0.00024931,3]
[329412784,1718326315124,-354.671615,0.00024931,7]
[329412785,1718326315158,-500.0,0.00024931,3]
[329412786,1718326315173,-1310.27,0.00024931,3]
[329412787,1718326315194,-500.0,0.00024931,3]
[329412788,1718326315217,-354.671609,0.00024931,7]
[329412789,1718326315262,-500.0,0.00024931,3]
[329412790,1718326315300,-1256.73,0.00024931,3]
[329412791,1718326315333,-161.253192,0.00024931,7]
[329412792,1718326315354,-565.51686149,0.00024931,3]
[329412793,1718326315369,-538.3,0.00024931,3]
[329412794,1718326315388,-500.0,0.00024931,3]
[329412795,1718326315403,-161.253197,0.00024931,7]
[329412796,1718326315419,-1048.7,0.00024931,3]
[329412797,1718326315447,-500.0,0.00024931,3]
[329412798,1718326315460,-195.14,0.00024931,3]
[329412799,1718326315490,-1580.07,0.00024931,3]
[329412800,1718326315524,-909.71,0.00024931,3]
[329412801,1718326315536,-197.49,0.00024931,3]
[329412802,1718326315548,-500.0,0.00024931,3]
[329412803,1718326315576,-500.0,0.00024931,3]
[329412804,1718326315589,-500.0,0.00024931,3]
[329412805,1718326315600,-9157.77,0.00024931,3]
[329412806,1718326315612,-500.0,0.00024931,3]
[329412807,1718326315625,-1186.73,0.00024931,3]
[329412808,1718326315657,-151.0,0.00024931,7]
[329412809,1718326315671,-500.0,0.00024931,3]
[329412810,1718326315701,-237.39,0.00024931,3]
[329412811,1718326315732,-500.0,0.00024931,3]
[329412812,1718326315773,-555.02,0.00024931,3]
[329412813,1718326315784,-500.0,0.00024931,3]
[329412814,1718326315800,-500.0,0.00024931,3]
[329412815,1718326315811,-500.0,0.00024931,3]
[329412816,1718326315823,-1036.07,0.00024931,3]
[329412817,1718326315834,-500.0,0.00024931,3]
[329412818,1718326315846,-500.0,0.00024931,3]
[329412819,1718326315856,-5406.88,0.00024931,3]
[329412820,1718326315867,-500.0,0.00024931,3]
[329412821,1718326315878,-500.0,0.00024931,3]
[329412822,1718326315891,-1070.96,0.00024931,3]
[329412823,1718326315902,-2320.28,0.00024931,3]
[329412824,1718326315917,-500.0,0.00024931,3]
[329412825,1718326315930,-500.0,0.00024931,3]
[329412826,1718326315944,-500.0,0.00024931,3]
[329412827,1718326315956,-736.73,0.00024931,3]
[329412828,1718326315969,-500.0,0.00024931,3]
[329412829,1718326315986,-901.93,0.00024931,3]
[329412830,1718326316003,-890.11,0.00024931,3]
[329412831,1718326316016,-1107.32,0.00024931,3]
[329412832,1718326316062,-500.0,0.00024931,3]
[329412833,1718326316083,-500.0,0.00024931,3]
[329412834,1718326316098,-500.0,0.00024931,3]
[329412835,1718326316112,-500.0,0.00024931,3]
[329412836,1718326316139,-617.42,0.00024931,3]
[329412837,1718326316186,-500.0,0.00024931,3]
[329412838,1718326316214,-1082.78,0.00024931,3]
[329412839,1718326316234,-500.0,0.00024931,3]
[329412840,1718326316265,-500.0,0.00024931,3]
[329412841,1718326316277,-500.0,0.00024931,3]
[329412842,1718326316295,-500.0,0.00024931,3]
[329412843,1718326316310,-500.0,0.00024931,3]
[329412844,1718326316329,-1129.3,0.00024931,3]
[329412845,1718326316344,-500.0,0.00024931,3]
[329412846,1718326316366,-1279.93,0.00024931,3]
[329412847,1718326316396,-681.39,0.00024931,3]
[329412848,1718326316409,-1545.42,0.00024931,3]
[329412849,1718326316434,-500.0,0.00024931,3]
[329412850,1718326316452,-439.35758972,0.00024931,3]
[329412851,1718326316468,-1018.85,0.00024931,3]
[329412852,1718326316480,-1223.08,0.00024931,3]
[329412853,1718326316492,-691.09,0.00024931,3]
[329412854,1718326316503,-714.83,0.00024931,3]
[329412855,1718326316520,-500.0,0.00024931,3]
[329412856,1718326316553,-500.0,0.00024931,3]
[329412857,1718326316573,-778.93,0.00024931,3]
[329412858,1718326316585,-3531.42,0.00024931,3]
[329412859,1718326316619,-500.0,0.00024931,3]
[329412860,1718326316664,-681.15,0.00024931,3]
[329412861,1718326316687,-500.0,0.00024931,3]
[329412862,1718326316699,-1473.8,0.00024931,3]
[329412863,1718326316712,-788.91,0.00024931,3]
[329412864,1718326316724,-500.0,0.00024931,3]
[329412865,1718326316738,-6475.63,0.00024931,3]
[329412866,1718326316758,-777.73,0.00024931,3]
[329412867,1718326316775,-500.0,0.00024931,3]
[329412868,1718326316792,-1577.29,0.00024931,3]
[329412869,1718326316804,-500.0,0.00024931,3]
[329412870,1718326316828,-1120.28,0.00024931,3]
[329412871,1718326316861,-1642.87,0.00024931,3]
[329412872,1718326316877,-2389.0,0.00024931,3]
[329412873,1718326316897,-1291.36,0.00024931,3]
[329412874,1718326316911,-500.0,0.00024931,3]
[329412875,1718326316946,-907.92,0.00024931,3]
[329412876,1718326316960,-500.0,0.00024931,3]
[329412877,1718326316974,-500.0,0.00024931,3]
[329412878,1718326316986,-520.14,0.00024931,3]
[329412879,1718326316997,-12987.45,0.00024931,3]
[329412880,1718326317009,-2319.99,0.00024931,3]
[329412881,1718326317052,-500.0,0.00024931,3]
[329412882,1718326317086,-611.86,0.00024931,3]
[329412883,1718326317102,-778.21,0.00024931,3]
[329412884,1718326317115,-754.88,0.00024931,3]
[329412885,1718326317147,-500.0,0.00024931,3]
[329412886,1718326317164,-4074.81,0.00024931,3]
[329412887,1718326317175,-2845.3,0.00024931,3]
[329412888,1718326317193,-656.54,0.00024931,3]
[329412889,1718326317429,-500.0,0.00024931,3]
[329412890,1718326317451,-500.0,0.00024931,3]
[329412891,1718326317487,-1483.98,0.00024931,3]
[329412892,1718326317514,-1532.91,0.00024931,3]
[329412893,1718326317541,-2056.22,0.00024931,3]
[329412894,1718326317555,-576.83,0.00024931,3]
[329412895,1718326317597,-500.0,0.00024931,3]
[329412896,1718326317622,-599.45,0.00024931,3]
[329412897,1718326317638,-500.0,0.00024931,3]
[329412898,1718326317652,-872.76,0.00024931,3]
[329412899,1718326317675,-1278.2,0.00024931,3]
[329412900,1718326317686,-1297.03,0.00024931,3]
[329412901,1718326317699,-20832.05,0.00024931,3]
[329412902,1718326317712,-500.0,0.00024931,3]
[329412903,1718326317725,-3101.77,0.00024931,3]
[329412904,1718326317742,-500.0,0.00024931,3]
[329412905,1718326317754,-627.67113367,0.00024931,3]
[329412906,1718326317790,-500.0,0.00024931,3]
[329412907,1718326317802,-643.49,0.00024931,3]
[329412908,1718326317816,-500.0,0.00024931,3]
[329412909,1718326317830,-500.0,0.00024931,3]
[329412910,1718326317842,-500.0,0.00024931,3]
[329412911,1718326317853,-5842.58,0.00024931,3]
[329412912,1718326317872,-1263.39,0.00024931,3]
[329412913,1718326317919,-190.66,0.00024931,3]
[329412914,1718326317945,-500.0,0.00024931,3]
[329412915,1718326317960,-500.0,0.00024931,3]
[329412916,1718326317980,-2399.05,0.00024931,3]
[329412917,1718326318008,-1214.38,0.00024931,3]
[329412918,1718326318035,-500.0,0.00024931,3]
[329412919,1718326318060,-2171.12,0.00024931,3]
[329412920,1718326318070,-500.0,0.00024931,3]
[329412921,1718326318111,-500.0,0.00024931,3]
[329412922,1718326318135,-887.59,0.00024931,3]
[329412923,1718326318159,-2938.01,0.00024931,3]
[329412924,1718326318200,-881.63,0.00024931,3]
[329412925,1718326318217,-554.16,0.00024931,3]
[329412926,1718326318233,-1881.22,0.00024931,3]
[329412927,1718326318250,-2087.76,0.00024931,3]
[329412928,1718326318264,-1025.72,0.00024931,3]
[329412929,1718326318275,-500.0,0.00024931,3]
[329412930,1718326318291,-500.0,0.00024931,3]
[329412931,1718326318316,-1880.15,0.00024931,3]
[329412932,1718326318330,-1571.8,0.00024931,3]
[329412933,1718326318347,-9937.45,0.00024931,3]
[329412934,1718326318388,-500.0,0.00024931,3]
[329412935,1718326318408,-1153.0,0.00024931,3]
[329412936,1718326318424,-500.0,0.00024931,3]
[329412937,1718326318456,-500.0,0.00024931,3]
[329412938,1718326318492,-500.0,0.00024931,3]
[329412939,1718326318517,-1172.55,0.00024931,3]
[329412940,1718326318541,-500.0,0.00024931,3]
[329412941,1718326318570,-1392.18,0.00024931,3]
[329412942,1718326318585,-1618.84,0.00024931,3]
[329412943,1718326318640,-500.0,0.00024931,3]
[329412944,1718326318652,-500.0,0.00024931,3]
[329412945,1718326318715,-2248.57,0.00024931,3]
[329412946,1718326318732,-302.38,0.00024931,3]
[329412947,1718326318745,-3702.08,0.00024931,3]
[329412948,1718326318757,-759.17,0.00024931,3]
[329412949,1718326318778,-500.0,0.00024931,3]
[329412950,1718326318840,-11940.85,0.00024931,3]
[329412951,1718326318884,-278.17144461,0.00024931,3]
[329412952,1718326318900,-500.0,0.00024931,3]
[329412953,1718326318958,-500.0,0.00024931,3]
[329412954,1718326318993,-899.62,0.00024931,3]
[329412955,1718326319010,-1594.39,0.00024931,3]
[329412956,1718326319068,-4218.81,0.00024931,3]
[329412957,1718326319106,-657.14,0.00024931,3]
[329412958,1718326319132,-500.0,0.00024931,3]
[329412959,1718326319166,-656.47,0.00024931,3]
[329412960,1718326319177,-795.48,0.00024931,3]
[329412961,1718326319208,-3013.12,0.00024931,3]
[329412962,1718326319236,-574.72,0.00024931,3]
[329412963,1718326319247,-417.60396802,0.00024931,3]
[329412964,1718326319272,-500.0,0.00024931,3]
[329412965,1718326319283,-500.0,0.00024931,3]
[329412966,1718326319307,-4273.7,0.00024931,3]
[329412967,1718326319345,-500.0,0.00024931,3]
[329412968,1718326319369,-2686.47,0.00024931,3]
[329412969,1718326319413,-747.72,0.00024931,3]
[329412970,1718326319440,-500.0,0.00024931,3]
[329412971,1718326319452,-871.16,0.00024931,3]
[329412972,1718326319473,-500.0,0.00024931,3]
[329412973,1718326319501,-500.0,0.00024931,3]
[329412974,1718326319514,-7429.21253047,0.00025,2]
[329412975,1718326319532,-153.17,0.00025068,2]
[329412976,1718326319560,-150.63,0.00025068,2]
[329412977,1718326319586,-197.83,0.000252,2]
[329412978,1718326319603,-500.0,0.00025204,3]
[329412979,1718326319625,-150.0,0.00025204,7]
[329412980,1718326319640,-491.63443244,0.00025205,3]
[329412981,1718326319658,-500.0,0.00025205,3]
[329412982,1718326319673,-500.0,0.00025205,3]
[329412983,1718326319685,-500.0,0.00025205,3]
[329412984,1718326319701,-500.0,0.00025205,3]
[329412985,1718326319722,-391.94438418,0.00025205,3]
[329412986,1718326319742,-430.01,0.00025205,3]
[329412987,1718326319762,-500.0,0.00025205,3]
[329412988,1718326319775,-500.0,0.00025205,3]
[329412989,1718326319800,-151.0,0.00025205,7]
[329412990,1718326319821,-500.0,0.00025205,3]
[329412991,1718326319835,-182.18333197,0.00025205,3]
[329412992,1718326319857,-500.0,0.00025205,3]
[329412993,1718326319887,-500.0,0.00025205,3]
[329412994,1718326319899,-500.0,0.00025205,3]
[329412995,1718326319911,-500.0,0.00025205,3]
[329412996,1718326319925,-500.0,0.00025205,3]
[329412997,1718326319936,-500.0,0.00025205,3]
[329412998,1718326319947,-500.0,0.00025205,3]
[329412999,1718326319962,-500.0,0.00025205,3]
[329413000,1718326319976,-500.0,0.00025205,3]
[329413001,1718326319988,-500.0,0.00025205,3]
[329413002,1718326320005,-553.86,0.00025205,3]
[329413003,1718326320026,-500.0,0.00025205,3]
[329413004,1718326320072,-500.0,0.00025205,3]
[329413005,1718326320114,-500.0,0.00025205,3]
[329413006,1718326320150,-500.0,0.00025205,3]
[329413007,1718326320196,-500.0,0.00025205,3]
[329413008,1718326320232,-500.0,0.00025205,3]
[329413009,1718326320246,-500.0,0.00025205,3]
[329413010,1718326320275,-500.0,0.00025205,3]
[329413011,1718326320287,-500.0,0.00025205,3]
[329413012,1718326320361,-500.0,0.00025205,3]
[329413013,1718326320372,-500.0,0.00025205,3]
[329413014,1718326320396,-500.0,0.00025205,3]
[329413015,1718326320434,-500.0,0.00025205,3]
[329413016,1718326320460,-500.0,0.00025205,3]
[329413017,1718326320486,-500.0,0.00025205,3]
[329413018,1718326320537,-500.0,0.00025205,3]
[329413019,1718326320585,-763.62,0.00025205,3]
[329413020,1718326320598,-500.0,0.00025205,3]
[329413021,1718326320636,-500.0,0.00025205,3]
[329413022,1718326320666,-500.0,0.00025205,3]
[329413023,1718326320694,-500.0,0.00025205,3]
[329413024,1718326320705,-500.0,0.00025205,3]
[329413025,1718326320717,-500.0,0.00025205,3]
[329413026,1718326320728,-500.0,0.00025205,3]
[329413027,1718326320753,-500.0,0.00025205,3]
[329413028,1718326320784,-500.0,0.00025205,3]
[329413029,1718326320796,-500.0,0.00025205,3]
[329413030,1718326320818,-500.0,0.00025205,3]
[329413031,1718326320850,-500.0,0.00025205,3]
[329413032,1718326320879,-500.0,0.00025205,3]
[329413033,1718326320890,-500.0,0.00025205,3]
[329413034,1718326320908,-500.0,0.00025205,3]
[329413035,1718326320922,-500.0,0.00025205,3]
[329413036,1718326320934,-500.0,0.00025205,3]
[329413037,1718326320966,-500.0,0.00025205,3]
[329413038,1718326320982,-500.0,0.00025205,3]
[329413039,1718326320998,-500.0,0.00025205,3]
[329413040,1718326321021,-500.0,0.00025205,3]
[329413041,1718326321040,-640.07,0.00025205,3]
[329413042,1718326321062,-199.91532362,0.00025205,3]
[329413043,1718326321087,-500.0,0.00025205,3]
[329413044,1718326321108,-500.0,0.00025205,3]
[329413045,1718326321123,-500.0,0.00025205,3]
[329413046,1718326321164,-500.0,0.00025205,3]
[329413047,1718326321182,-500.0,0.00025205,3]
[329413048,1718326321209,-500.0,0.00025205,3]
[329413049,1718326321244,-500.0,0.00025205,3]
[329413050,1718326321277,-500.0,0.00025205,3]
[329413051,1718326321287,-500.0,0.00025205,3]
[329413052,1718326321309,-500.0,0.00025205,3]
[329413053,1718326321322,-500.0,0.00025205,3]
[329413054,1718326321333,-641.17,0.00025205,3]
[329413055,1718326321345,-500.0,0.00025205,3]
[329413056,1718326321360,-500.0,0.00025205,3]
[329413057,1718326321372,-500.0,0.00025205,3]
[329413058,1718326321385,-500.0,0.00025205,3]
[329413059,1718326321399,-500.0,0.00025205,3]
[329413060,1718326321416,-570.32,0.00025205,3]
[329413061,1718326321428,-500.0,0.00025205,3]
[329413062,1718326321438,-500.0,0.00025205,3]
[329413063,1718326321449,-500.0,0.00025205,3]
[329413064,1718326321472,-500.0,0.00025205,3]
[329413065,1718326321491,-500.0,0.00025205,3]
[329413066,1718326321506,-500.0,0.00025205,3]
[329413067,1718326321518,-500.0,0.00025205,3]
[329413068,1718326321528,-756.62,0.00025205,3]
[329413069,1718326321537,-500.0,0.00025205,3]
[329413070,1718326321547,-500.0,0.00025205,3]
[329413071,1718326321558,-500.0,0.00025205,3]
[329413072,1718326321570,-500.0,0.00025205,3]
[329413073,1718326321581,-500.0,0.00025205,3]
[329413074,1718326321594,-500.0,0.00025205,3]
[329413075,1718326321605,-500.0,0.00025205,3]
[329413076,1718326321616,-500.0,0.00025205,3]
[329413077,1718326321627,-188.01,0.00025205,3]
[329413078,1718326321638,-541.44,0.00025205,3]
[329413079,1718326321651,-500.0,0.00025205,3]
[329413080,1718326321662,-500.0,0.00025205,3]
[329413081,1718326321673,-500.0,0.00025205,3]
[329413082,1718326321684,-500.0,0.00025205,3]
[329413083,1718326321694,-500.0,0.00025205,3]
[329413084,1718326321705,-500.0,0.00025205,3]
[329413085,1718326321716,-500.0,0.00025205,3]
[329413086,1718326321741,-500.0,0.00025205,3]
[329413087,1718326321753,-531.1,0.00025205,3]
[329413088,1718326321763,-500.0,0.00025205,3]
[329413089,1718326321790,-500.0,0.00025205,3]
[329413090,1718326321802,-500.0,0.00025205,3]
[329413091,1718326321825,-500.0,0.00025205,3]
[329413092,1718326321839,-500.0,0.00025205,3]
[329413093,1718326321856,-500.0,0.00025205,3]
[329413094,1718326321885,-500.0,0.00025205,3]
[329413095,1718326321897,-500.0,0.00025205,3]
[329413096,1718326321907,-871.93,0.00025205,3]
[329413097,1718326321930,-500.0,0.00025205,3]
[329413098,1718326321943,-500.0,0.00025205,3]
[329413099,1718326321958,-811.04,0.00025205,3]
[329413100,1718326321986,-500.0,0.00025205,3]
[329413101,1718326322002,-1456.15,0.00025205,3]
[329413102,1718326322016,-500.0,0.00025205,3]
[329413103,1718326322044,-500.0,0.00025205,3]
[329413104,1718326322098,-747.44,0.00025205,3]
[329413105,1718326322148,-897.13,0.00025205,3]
[329413106,1718326322160,-500.0,0.00025205,3]
[329413107,1718326322196,-500.0,0.00025205,3]
[329413108,1718326322219,-500.0,0.00025205,3]
[329413109,1718326322235,-500.0,0.00025205,3]
[329413110,1718326322253,-500.0,0.00025205,3]
[329413111,1718326322269,-2475.47,0.00025205,3]
[329413112,1718326322282,-500.0,0.00025205,3]
[329413113,1718326322305,-500.0,0.00025205,3]
[329413114,1718326322317,-500.0,0.00025205,3]
[329413115,1718326322342,-500.0,0.00025205,3]
[329413116,1718326322357,-500.0,0.00025205,3]
[329413117,1718326322369,-500.0,0.00025205,3]
[329413118,1718326322382,-746.58,0.00025205,3]
[329413119,1718326322405,-450.09882769,0.00025205,3]
[329413120,1718326322434,-2738.14,0.00025205,3]
[329413121,1718326322444,-313.44176543,0.00025205,3]
[329413122,1718326322459,-500.0,0.00025205,3]
[329413123,1718326322473,-4588.61,0.00025205,3]
[329413124,1718326322500,-500.0,0.00025205,3]
[329413125,1718326322556,-500.0,0.00025205,3]
[329413126,1718326322598,-500.2,0.00025205,3]
[329413127,1718326322677,-546.79921238,0.00025205,3]
[329413128,1718326322689,-500.0,0.00025205,3]
[329413129,1718326322701,-745.58,0.00025205,3]
[329413130,1718326322744,-500.0,0.00025205,3]
[329413131,1718326322772,-1721.54,0.00025205,3]
[329413132,1718326322786,-3059.36,0.00025205,3]
[329413133,1718326322799,-500.0,0.00025205,3]
[329413134,1718326322812,-500.0,0.00025205,3]
[329413135,1718326322828,-500.0,0.00025205,3]
[329413136,1718326322859,-500.0,0.00025205,3]
[329413137,1718326322893,-500.0,0.00025205,3]
[329413138,1718326322906,-500.0,0.00025205,3]
[329413139,1718326322990,-500.0,0.00025205,3]
[329413140,1718326323017,-1034.72,0.00025205,3]
[329413141,1718326323059,-500.0,0.00025205,3]
[329413142,1718326323089,-3109.59,0.00025205,3]
[329413143,1718326323117,-960.45,0.00025205,3]
[329413144,1718326323143,-500.0,0.00025205,3]
[329413145,1718326323156,-4009.44,0.00025205,3]
[329413146,1718326323266,-263.20641226,0.00025205,3]
[329413147,1718326323329,-500.0,0.00025205,3]
[329413148,1718326323342,-178.65,0.00025205,3]
[329413149,1718326323359,-1373.05,0.00025205,3]
[329413150,1718326323380,-500.0,0.00025205,3]
[329413151,1718326323392,-1310.27,0.00025205,3]
[329413152,1718326323409,-500.0,0.00025205,3]
[329413153,1718326323446,-500.0,0.00025205,3]
[329413154,1718326323470,-1256.73,0.00025205,3]
[329413155,1718326323501,-538.3,0.00025205,3]
[329413156,1718326323538,-500.0,0.00025205,3]
[329413157,1718326323572,-1048.7,0.00025205,3]
[329413158,1718326323615,-500.0,0.00025205,3]
[329413159,1718326323692,-1580.07,0.00025205,3]